bitfinex-derivatives/quotes_ETHF0:USTF0_20250316
["timestamp","ask_amount","ask_price","bid_price","bid_amount"]
[1742124395005,3.21576769,1881.1,1880.9,11.1923]
[1742124395900,4.367,1881.0,1880.9,11.1923]
[1742124396296,4.367,1881.0,1880.8,40.8]
[1742124396708,4.367,1881.0,1880.9,10.7313]
[1742124396901,0.00796769,1881.1,1880.9,10.7313]
[1742124397108,4.368,1881.2,1881.0,3.2078]
[1742124397312,4.368,1881.2,1881.1,10.7313]
[1742124397607,3.2078,1881.5,1881.1,10.7313]
[1742124397809,4.367,1881.3,1881.1,16.1288]
[1742124398109,4.367,1881.3,1881.2,10.7313]
[1742124398815,15.8729,1881.3,1881.0,0.00796768]
[1742124399112,15.8729,1881.3,1881.1,10.7313]
[1742124399801,15.8729,1881.3,1881.0,0.00796768]
[1742124399996,0.00796769,1881.4,1881.1,3.2078]
[1742124400202,0.00796769,1881.4,1881.2,11.3447]
[1742124400506,3.21576769,1881.4,1881.2,11.3447]
[1742124401104,10.7015,1881.8,1881.2,14.5525]
[1742124401304,4.367,1881.6,1881.2,14.5525]
[1742124402207,4.367,1881.6,1881.4,3.2078]
[1742124402407,4.37496769,1881.6,1881.5,11.1484]
[1742124408211,0.00796769,1881.6,1881.5,16.484]
[1742124410305,4.37296769,1881.6,1881.5,16.484]
[1742124413314,4.39289882,1881.6,1881.5,16.484]
[1742124414302,0.02789882,1881.6,1881.5,16.484]
[1742124414508,4.41282995,1881.6,1881.5,16.484]
[1742124415115,0.04782995,1881.6,1881.5,16.484]
[1742124416907,11.26912995,1881.6,1881.4,3.2078]
[1742124417317,3.2078,1881.5,1881.1,7.1845]
[1742124417519,0.03986226,1881.3,1881.1,7.1845]
[1742124417816,0.00796769,1881.6,1881.2,3.2078]
[1742124418020,0.00796769,1881.6,1881.5,3.2078]
[1742124418211,4.37196769,1881.6,1881.2,11.6082]
[1742124418415,10.9749,1881.5,1881.2,52.4082]
[1742124418619,0.00796769,1881.6,1881.2,52.4082]
[1742124418813,4.364,1881.5,1881.2,52.4082]
[1742124419214,15.3389,1881.5,1881.2,52.4082]
[1742124419718,15.3389,1881.5,1881.3,3.2078]
[1742124419917,15.3389,1881.5,1881.4,11.6082]
[1742124420618,15.35891669,1881.5,1881.4,11.6082]
[1742124420814,4.38401669,1881.5,1881.4,11.6082]
[1742124421015,4.38401669,1881.5,1881.4,17.3401]
[1742124421416,4.38401669,1881.5,1881.4,58.1401]
[1742124422015,4.40403349,1881.5,1881.4,58.1401]
[1742124422518,0.04003349,1881.5,1881.4,58.1401]
[1742124423121,0.06005029,1881.5,1881.4,58.1401]
[1742124423920,11.67215029,1881.5,1881.4,40.8]
[1742124424118,11.67215029,1881.5,1881.3,3.2078]
[1742124424314,4.363,1881.4,1881.3,3.2078]
[1742124424708,4.363,1881.4,1881.3,44.0078]
[1742124425421,4.42305029,1881.4,1881.3,44.0078]
[1742124429015,0.06005029,1881.4,1881.3,44.0078]
[1742124430016,0.00796769,1881.6,1881.3,44.0078]
[1742124430017,1e-08,1881.6,1881.3,46.5078]
[1742124430213,11.4575,1882.1,1881.5,3.2078]
[1742124430414,11.4575,1882.1,1881.2,4.362]
[1742124430415,11.4575,1882.1,1881.7,3.2078]
[1742124430616,11.4575,1882.1,1881.8,10.8155]
[1742124430819,11.4575,1882.1,1881.9,40.8]
[1742124431920,0.00796769,1882.2,1881.9,44.0078]
[1742124432126,11.46546769,1882.2,1882.0,10.8155]
[1742124432328,0.00796769,1882.2,1882.1,6.9228]
[1742124432715,0.00796769,1882.2,1882.1,10.1306]
[1742124433227,0.00796769,1882.2,1882.1,15.5403]
[1742124433616,0.00796769,1882.2,1882.1,56.3403]
[1742124435428,6.8812,1882.8,1882.1,58.8403]
[1742124435630,11.0261,1882.7,1882.5,3.2078]
[1742124435828,15.3861,1882.7,1882.3,3.2078]
[1742124436026,3.2078,1882.6,1882.0,0.00796769]
[1742124436330,11.0261,1882.5,1882.0,0.00796769]
[1742124436527,4.36,1882.4,1882.0,0.00796769]
[1742124436720,11.0261,1882.3,1882.0,0.00796769]
[1742124437624,3.2078,1882.2,1882.0,0.00796769]
[1742124437818,15.3861,1882.1,1882.0,0.00796769]
[1742124438027,20.8584,1882.1,1882.0,0.00796769]
[1742124438334,15.3861,1882.1,1882.0,0.00796769]
[1742124438528,11.0261,1882.1,1882.0,0.00796769]
[1742124439034,11.0261,1882.1,1882.0,3.21576769]
[1742124439933,3.2078,1882.4,1882.0,3.21576769]
[1742124440133,4.359,1882.3,1882.0,3.21576769]
[1742124440336,15.1912,1882.3,1882.0,3.21576769]
[1742124440926,4.359,1882.2,1882.0,3.21576769]
[1742124441133,15.1912,1882.2,1882.1,10.7397]
[1742124443735,15.1912,1882.2,1882.0,3.21576769]
[1742124445632,15.1912,1882.2,1882.1,11.5936]
[1742124446241,10.8322,1882.2,1882.1,11.5936]
[1742124446632,4.358,1882.4,1882.1,18.6059]
[1742124446838,11.7116,1882.4,1882.2,14.8014]
[1742124447039,0.00796769,1882.5,1882.2,14.8014]
[1742124447232,0.00796769,1882.5,1882.4,3.2078]
[1742124447933,0.00796769,1882.5,1882.4,44.0078]
[1742124448433,0.00796769,1882.5,1882.4,40.8]
[1742124450140,0.00796769,1882.5,1882.4,40.8]
[1742124450940,0.00796769,1882.5,1882.4,44.0078]
[1742124454941,0.00796769,1882.5,1882.4,3.2078]
[1742124457441,0.00796769,1882.5,1882.4,14.8676]
[1742124457741,11.52276769,1882.5,1882.4,14.8676]
[1742124460147,11.52276769,1882.5,1882.4,55.6676]
[1742124460350,11.52276769,1882.5,1882.4,44.0078]
[1742124462555,17.23056769,1882.5,1882.0,3.21576769]
[1742124462755,17.4592,1882.4,1882.0,3.21576769]
[1742124463057,10.6003,1882.3,1882.1,40.8]
[1742124465664,10.6003,1882.3,1882.1,51.6238]
[1742124467955,10.6003,1882.3,1882.2,11.5054]
[1742124468564,10.6003,1882.3,1882.2,18.1691]
[1742124470966,11.70301454,1882.3,1881.8,6.6637]
[1742124471158,3.2078,1882.1,1881.6,3.2078]
[1742124471353,3.2078,1881.9,1881.4,3.2078]
[1742124471554,11.5712,1881.8,1881.5,40.8]
[1742124471763,4.352,1881.7,1881.5,40.8]
[1742124471968,11.5712,1881.6,1881.5,40.8]
[1742124472268,11.5712,1881.6,1881.4,0.00796769]
[1742124472867,3.2078,1881.5,1880.9,7.144]
[1742124473064,15.9172,1881.4,1881.0,3.2078]
[1742124473264,15.9172,1881.4,1881.0,40.8]
[1742124473460,15.9172,1881.4,1881.1,3.2078]
[1742124473665,15.9172,1881.4,1881.0,40.8]
[1742124474158,15.92516769,1881.4,1881.0,44.01576769]
[1742124474363,15.92516769,1881.4,1881.1,11.0239]
[1742124475466,15.92516769,1881.4,1881.1,16.5122]
[1742124475963,15.92516769,1881.4,1881.2,10.6095]
[1742124476767,15.92516769,1881.4,1881.2,17.4439]
[1742124476973,15.92516769,1881.4,1881.0,44.01576769]
[1742124477165,3.2078,1881.3,1881.0,40.80796769]
[1742124477365,11.3132,1881.2,1881.0,40.80796769]
[1742124477571,4.352,1881.1,1881.0,40.80796769]
[1742124478974,4.352,1881.1,1881.0,44.01576769]
[1742124478975,4.351,1881.1,1881.0,44.01576769]
[1742124479274,4.351,1881.1,1881.0,50.87446769]
[1742124479962,3.21576769,1881.4,1881.0,50.87446769]
[1742124480268,0.00796769,1881.4,1881.2,3.2078]
[1742124480475,0.00796769,1881.4,1881.3,11.2576]
[1742124480770,11.21476769,1881.4,1881.3,11.2576]
[1742124480976,11.21476769,1881.4,1881.1,16.7467]
[1742124481274,0.00796769,1881.4,1881.3,3.2078]
[1742124481577,11.42416769,1881.4,1881.2,11.1731]
[1742124481767,11.42416769,1881.4,1881.1,8.6969]
[1742124481966,11.42416769,1881.4,1881.2,11.1731]
[1742124482363,11.42416769,1881.4,1881.1,5.4891]
[1742124482775,11.42416769,1881.4,1881.1,16.6622]
[1742124483870,11.42416769,1881.4,1881.2,11.1731]
[1742124485676,14.63196769,1881.4,1881.0,47.66666769]
[1742124485877,3.2078,1881.1,1881.0,40.80796769]
[1742124486075,7.5578,1881.1,1881.0,0.00796769]
[1742124486272,7.5578,1881.1,1880.7,3.2078]
[1742124486472,18.0826,1881.0,1880.7,3.2078]
[1742124487080,18.0826,1881.0,1880.8,40.8]
[1742124487272,10.8401,1881.0,1880.8,40.8]
[1742124487476,10.8401,1881.0,1880.9,11.4177]
[1742124487677,7.5578,1881.1,1880.9,11.4177]
[1742124487883,3.2078,1881.1,1880.9,11.4177]
[1742124488180,3.2078,1881.1,1880.7,3.21576768]
[1742124488375,10.9832,1881.0,1880.7,3.21576768]
[1742124488580,10.9832,1881.0,1880.8,52.2177]
[1742124488878,10.9832,1881.0,1880.9,11.4177]
[1742124489080,10.9832,1881.0,1880.8,40.8]
[1742124489282,7.5578,1880.9,1880.7,0.00796768]
[1742124489581,10.9832,1880.8,1880.7,0.00796768]
[1742124490087,13.4832,1880.8,1880.7,0.00796768]
[1742124490374,10.9832,1880.8,1880.7,0.00796768]
[1742124490881,15.3332,1880.8,1880.7,0.00796768]
[1742124491675,17.8332,1880.8,1880.7,0.00796768]
[1742124491969,15.3332,1880.8,1880.7,0.00796768]
[1742124493076,17.8332,1880.8,1880.7,0.00796768]
[1742124493585,15.3332,1880.8,1880.7,0.00796768]
[1742124493978,17.8332,1880.8,1880.7,0.00796768]
[1742124494482,15.3332,1880.8,1880.7,0.00796768]
[1742124494674,17.8332,1880.8,1880.7,0.00796768]
[1742124495076,17.8332,1880.8,1880.1,3.2078]
[1742124495279,3.2078,1880.5,1879.9,8.9017]
[1742124495584,4.349,1880.4,1879.9,8.9017]
[1742124496082,4.349,1880.4,1879.9,49.7017]
[1742124496276,0.00796769,1880.3,1879.9,49.7017]
[1742124497886,0.00796769,1880.3,1880.0,10.9705]
[1742124498185,4.35,1880.2,1880.0,10.9705]
[1742124498382,4.35,1880.2,1880.1,7.0927]
[1742124500483,4.349,1880.2,1880.1,10.3005]
[1742124500685,11.05686769,1880.3,1880.1,10.3005]
[1742124500886,4.349,1880.2,1880.1,10.3005]
[1742124501085,0.00796769,1880.3,1880.1,10.3005]
[1742124503983,21.6057,1881.1,1880.1,12.8005]
[1742124504179,15.8593,1881.0,1880.7,3.2078]
[1742124504392,4.348,1880.9,1880.8,7.2605]
[1742124504686,4.348,1880.9,1880.8,48.0605]
[1742124505693,15.2278,1880.9,1880.8,48.0605]
[1742124508682,15.2278,1880.9,1880.8,40.8]
[1742124509692,15.2278,1880.9,1880.7,3.21576769]
[1742124510298,15.2278,1880.9,1880.7,44.01576769]
[1742124511294,15.2278,1880.9,1880.7,3.21576769]
[1742124512889,15.2278,1880.9,1880.7,10.46316769]
[1742124513698,15.2278,1880.9,1880.7,7.25536769]
[1742124515503,15.2278,1880.9,1880.7,0.00796769]
[1742124515797,3.2078,1880.8,1880.7,0.00796769]
[1742124515998,14.753,1880.8,1880.7,0.00796769]
[1742124517295,11.5452,1880.8,1880.7,0.00796769]
[1742124518298,15.8902,1880.8,1880.7,0.00796769]
[1742124518694,4.345,1880.8,1880.7,0.00796769]
[1742124521794,4.344,1880.8,1880.7,0.00796769]
[1742124527503,11.4405,1880.8,1880.7,0.00796769]
[1742124527703,22.93,1880.8,1880.7,0.00796769]
[1742124529611,15.8335,1880.8,1880.7,0.00796769]
[1742124535205,20.1435905,1880.8,1880.4,11.12730001]
[1742124535510,15.8335,1880.8,1880.4,14.33510001]
[1742124536315,4.34,1880.7,1880.4,14.33510001]
[1742124536609,15.0534,1880.7,1880.4,14.33510001]
[1742124537810,18.2612,1880.7,1880.3,12.4861]
[1742124538415,18.2612,1880.7,1880.2,44.0078]
[1742124538416,3.2078,1880.5,1880.2,40.8]
[1742124538714,15.0524,1880.4,1880.2,40.8]
[1742124539010,15.0524,1880.4,1880.3,11.4261]
[1742124539212,15.0524,1880.4,1880.3,10.5601]
[1742124540113,3.2078,1880.5,1880.3,10.5601]
[1742124540407,4.339,1880.6,1880.3,10.5601]
[1742124540618,14.1065,1880.7,1880.3,10.5601]
[1742124540619,15.2377,1880.5,1880.3,10.5601]
[1742124541612,4.339,1880.5,1880.3,10.5601]
[1742124543517,4.34596769,1881.0,1880.4,3.2078]
[1742124543810,4.34596769,1881.0,1880.3,13.0601]
[1742124543811,11.4681,1880.9,1880.7,3.2078]
[1742124544016,15.8061,1880.9,1880.8,24.1098]
[1742124546110,15.8061,1880.9,1880.8,11.4153]
[1742124547511,15.8061,1880.9,1880.8,24.3043]
[1742124547806,11.4681,1880.9,1880.8,24.3043]
[1742124548009,15.8051,1880.9,1880.8,24.3043]
[1742124548417,0.00796769,1881.0,1880.8,24.3043]
[1742124548620,4.337,1880.9,1880.8,24.3043]
[1742124549209,4.337,1880.9,1880.8,12.889]
[1742124549715,0.00796769,1881.0,1880.8,12.889]
[1742124549915,0.00796769,1881.0,1880.9,3.2078]
[1742124550423,28.61034434,1881.2,1880.9,3.2078]
[1742124550917,4.336,1881.2,1880.9,3.2078]
[1742124551418,4.34396769,1881.2,1881.0,40.8]
[1742124552122,0.00796769,1881.2,1881.1,3.2078]
[1742124553020,0.00796769,1881.2,1881.1,44.0078]
[1742124553812,10.60986769,1881.2,1880.9,3.21576769]
[1742124554015,10.60986769,1881.2,1880.9,0.00796769]
[1742124555315,13.81766769,1881.2,1880.9,0.00796769]
[1742124556325,21.01116769,1881.2,1880.9,0.00796769]
[1742124559121,10.7135,1881.1,1880.9,0.00796769]
[1742124559423,4.333,1881.0,1880.9,0.00796769]
[1742124562626,4.332,1881.0,1880.9,0.00796769]
[1742124563017,4.332,1881.0,1880.9,11.14486769]
[1742124565425,4.331,1881.0,1880.9,11.14486769]
[1742124566231,0.00796769,1881.2,1880.9,16.85266769]
[1742124566435,0.00796769,1881.2,1881.1,3.2078]
[1742124567919,11.6474,1881.5,1881.1,3.2078]
[1742124567920,11.6474,1881.5,1881.1,5.7078]
[1742124568124,28.60434434,1881.6,1881.3,3.2078]
[1742124568319,40.25174434,1881.6,1881.4,16.4782]
[1742124568525,40.25174434,1881.6,1881.5,11.1409]
[1742124568722,24.27434434,1881.6,1881.5,14.3487]
[1742124568927,6.24254435,1881.6,1881.5,16.8487]
[1742124569238,5.4455,1882.3,1881.5,16.8487]
[1742124569239,4.33,1882.0,1881.5,16.8487]
[1742124569435,4.33,1882.0,1881.6,3.2078]
[1742124569634,10.9603,1881.9,1881.7,10.9794]
[1742124569829,10.9603,1881.9,1881.8,40.8]
[1742124570334,10.9603,1881.9,1881.8,44.0078]
[1742124572333,10.9603,1881.9,1881.8,49.6119]
[1742124573237,0.00796769,1882.0,1881.8,49.6119]
[1742124573434,0.00796769,1882.0,1881.9,11.0246]
[1742124574432,0.00796769,1882.0,1881.9,51.8246]
[1742124575437,0.00796769,1882.0,1881.9,54.3246]
[1742124575736,0.00796769,1882.0,1881.9,51.8246]
[1742124576744,0.00796769,1882.0,1881.8,3.2078]
[1742124576935,4.326,1881.9,1881.6,14.0022]
[1742124577138,10.9151,1881.8,1881.6,54.8022]
[1742124577434,10.9151,1881.8,1881.6,3.2078]
[1742124579740,3.2078,1881.7,1881.5,40.8]
[1742124579942,15.4553,1881.6,1881.2,14.0022]
[1742124580143,7.0043,1881.5,1881.2,3.2078]
[1742124580436,14.3381,1881.4,1880.9,3.21576769]
[1742124580736,4.325,1881.3,1880.9,3.21576769]
[1742124580943,11.1303,1881.2,1881.0,40.8]
[1742124581138,16.7587,1881.2,1881.0,40.8]
[1742124583032,3.2078,1881.1,1881.0,40.8]
[1742124583237,14.0362,1881.1,1881.0,40.8]
[1742124583445,10.8284,1881.1,1881.0,40.8]
[1742124584443,10.8284,1881.1,1881.0,51.601]
[1742124585139,3.2078,1881.4,1881.0,51.601]
[1742124585348,10.6697,1881.2,1881.1,3.2078]
[1742124585847,10.6697,1881.2,1880.9,3.21576769]
[1742124586046,16.374,1881.2,1881.1,40.8]
[1742124587146,10.6697,1881.2,1881.1,40.8]
[1742124588545,7.0043,1881.5,1881.1,44.0078]
[1742124588740,15.1048,1881.4,1881.2,10.9959]
[1742124589154,15.1048,1881.4,1881.1,44.0078]
[1742124589448,15.1048,1881.4,1881.1,51.7959]
[1742124589641,15.1048,1881.4,1881.1,55.0037]
[1742124589849,15.1048,1881.4,1881.2,10.9959]
[1742124590744,3.2078,1881.6,1881.2,10.9959]
[1742124590946,4.322,1881.6,1881.3,3.2078]
[1742124591149,4.322,1881.6,1881.5,3.2078]
[1742124591341,4.322,1881.8,1881.5,3.2078]
[1742124591540,15.7545,1881.8,1881.6,11.5323]
[1742124592048,4.322,1881.8,1881.7,3.2078]
[1742124593156,0.00796769,1882.0,1881.7,3.2078]
[1742124593451,4.32896769,1882.0,1881.8,11.5323]
[1742124593950,4.32896769,1882.0,1881.9,5.683]
[1742124594540,4.32896769,1882.0,1881.9,46.483]
[1742124595249,4.32896769,1882.0,1881.9,40.8]
[1742124595441,16.68466769,1882.0,1881.5,3.2078]
[1742124595646,14.2738,1881.9,1881.5,3.2078]
[1742124595942,11.066,1881.9,1881.5,44.0078]
[1742124596447,11.066,1881.9,1881.6,11.6822]
[1742124596652,11.066,1881.9,1881.5,44.0078]
[1742124597146,0.00796769,1882.0,1881.7,3.2078]
[1742124597344,4.319,1881.9,1881.8,22.8166]
[1742124597542,15.431,1881.9,1881.8,22.8166]
[1742124598249,4.319,1881.9,1881.8,22.8166]
[1742124598649,0.00796769,1882.0,1881.8,22.8166]
[1742124598951,0.00796769,1882.0,1881.9,13.8437]
[1742124599350,4.32696769,1882.0,1881.9,10.6359]
[1742124600553,4.32696769,1882.0,1881.7,3.2078]
[1742124600752,26.6431,1881.9,1881.5,40.8]
[1742124601253,3.2078,1881.6,1881.0,3.2078]
[1742124601456,3.2078,1881.4,1881.0,3.2078]
[1742124601650,17.8206,1881.3,1881.1,40.8]
[1742124601855,4.318,1881.2,1881.1,40.8]
[1742124602047,15.187,1881.2,1881.1,40.8]
[1742124603149,15.187,1881.2,1880.9,0.00796769]
[1742124603550,5.6287,1881.1,1880.9,0.00796769]
[1742124603851,14.0933,1881.0,1880.9,0.00796769]
[1742124604059,14.0933,1881.0,1880.9,40.80796769]
[1742124604260,16.5933,1881.0,1880.5,3.2078]
[1742124604551,4.317,1880.9,1880.5,3.2078]
[1742124604757,3.2078,1880.6,1880.3,10.7377]
[1742124604958,9.9457,1880.5,1880.1,3.2078]
[1742124605154,9.9457,1880.5,1880.1,13.9455]
[1742124605664,9.95366769,1880.5,1880.1,13.95346769]
[1742124607151,9.95366769,1880.5,1880.1,3.21576769]
[1742124607363,3.2078,1880.3,1880.1,0.00796769]
[1742124607662,4.317,1880.2,1880.1,1e-08]
[1742124607862,21.2838,1880.2,1880.1,1e-08]
[1742124608060,21.2838,1880.2,1879.2,3.2078]
[1742124608061,27.23086711,1880.2,1879.2,3.2078]
[1742124608260,3.2078,1879.7,1879.2,3.2078]
[1742124608559,20.8955,1879.6,1879.2,3.2078]
[1742124608961,3.2078,1879.5,1878.9,17.0169]
[1742124609153,10.9813,1879.4,1879.2,0.00796769]
[1742124609354,4.318,1879.3,1879.2,0.00796769]
[1742124609952,7.5258,1879.3,1879.2,0.00796769]
[1742124610158,4.318,1879.3,1879.2,0.00796769]
[1742124610657,7.5258,1879.3,1879.2,0.00796769]
[1742124610858,7.5258,1879.3,1878.4,8.5477]
[1742124610859,10.0258,1879.3,1878.4,8.5477]
[1742124611056,14.1891,1879.2,1878.5,10.8123]
[1742124611249,10.9813,1879.2,1878.6,3.2078]
[1742124611455,10.9813,1879.2,1878.7,10.8123]
[1742124611761,14.1891,1879.2,1878.7,10.8123]
[1742124611954,3.2078,1879.0,1878.7,10.8123]
[1742124612159,15.2993,1878.9,1878.4,8.5477]
[1742124612357,15.2993,1878.9,1878.5,10.7628]
[1742124613552,3.2078,1878.8,1878.2,3.2078]
[1742124613859,10.8661,1878.7,1878.2,3.2078]
[1742124614060,4.318,1878.6,1878.3,10.7628]
[1742124615063,4.318,1878.6,1878.4,3.2078]
[1742124615260,4.318,1878.6,1878.5,11.0881]
[1742124616161,10.9406,1878.9,1878.5,11.0881]
[1742124616162,4.318,1878.7,1878.5,11.0881]
[1742124616357,4.318,1878.7,1878.6,3.2078]
[1742124617259,3.2078,1879.3,1878.6,3.2078]
[1742124617459,6.42124824,1889.6,1879.0,3.2078]
[1742124617460,8.86386769,1879.5,1879.0,3.2078]
[1742124617759,10.9406,1879.4,1879.1,11.0881]
[1742124618164,10.9406,1879.4,1879.2,3.2078]
[1742124618359,10.9406,1879.4,1879.3,10.7882]
[1742124619169,4.32596769,1879.5,1879.3,10.7882]
[1742124621563,4.32596769,1879.5,1878.8,6.6738]
[1742124621564,10.8126,1879.4,1878.8,3.2078]
[1742124621759,23.3354,1879.4,1878.8,3.2078]
[1742124621963,23.3354,1879.4,1878.9,11.6319]
[1742124622861,16.1138,1879.4,1879.0,3.2078]
[1742124623059,16.1138,1879.4,1879.1,11.6319]
[1742124623261,4.32596769,1879.5,1879.1,11.6319]
[1742124624766,11.6224,1879.4,1879.1,11.6319]
[1742124625668,0.00796769,1879.5,1879.2,3.2078]
[1742124625869,0.00796769,1879.5,1879.3,16.6588]
[1742124626070,4.32396769,1879.5,1879.4,14.3953]
[1742124626457,0.00796769,1879.5,1879.4,14.3953]
[1742124626868,1.1111,1880.3,1879.4,14.3953]
[1742124626869,15.9384,1880.2,1879.4,16.8953]
[1742124627070,4.316,1880.1,1879.8,3.2078]
[1742124627267,1.1111,1880.3,1880.0,3.2078]
[1742124627461,4.316,1880.5,1880.2,3.2078]
[1742124627770,4.316,1880.6,1880.4,3.2078]
[1742124627973,4.316,1880.6,1880.5,10.7893]
[1742124628571,0.00796769,1880.7,1880.5,16.4822]
[1742124628763,4.315,1880.6,1880.5,16.4822]
[1742124628958,0.00796769,1880.7,1880.5,16.4822]
[1742124629165,0.00796769,1880.7,1880.6,3.2078]
[1742124629368,29.517,1881.3,1880.6,3.2078]
[1742124629667,7.7697,1881.4,1880.9,3.2078]
[1742124629972,7.7697,1881.4,1881.0,10.7893]
[1742124630558,6.44896769,1881.4,1881.0,10.7893]
[1742124630764,6.44896769,1881.4,1880.5,5.6929]
[1742124630765,3.2078,1881.2,1880.6,3.2078]
[1742124630964,3.2078,1881.0,1880.6,13.9607]
[1742124631272,11.3303,1880.9,1880.4,3.2078]
[1742124631468,4.314,1880.8,1880.4,3.2078]
[1742124631672,7.5218,1880.8,1880.2,3.21576769]
[1742124631867,11.3303,1880.7,1880.2,3.21576769]
[1742124633067,3.2078,1880.6,1880.2,3.21576769]
[1742124633362,4.313,1880.5,1880.2,3.21576769]
[1742124633562,3.2078,1880.4,1879.3,3.2078]
[1742124633773,3.2078,1880.0,1879.4,6.6969]
[1742124633971,3.2078,1879.8,1879.4,6.6969]
[1742124634160,3.2078,1879.8,1879.5,11.0434]
[1742124634666,11.3914,1879.7,1879.5,11.0434]
[1742124634866,4.312,1879.6,1879.5,11.05136769]
[1742124638369,7.52776769,1879.8,1879.5,11.05136769]
[1742124639269,7.52776769,1879.8,1879.5,16.75916769]
[1742124639270,0.00796769,1879.8,1879.5,16.75916769]
[1742124639470,0.00796769,1879.8,1879.6,5.4577]
[1742124639667,3.2078,1880.5,1879.7,13.9462]
[1742124639874,4.311,1880.3,1879.7,13.9462]
[1742124640066,15.2074,1880.3,1879.7,13.9462]
[1742124640262,4.311,1880.3,1879.9,3.2078]
[1742124640462,4.311,1880.3,1880.0,10.7384]
[1742124640673,7.5188,1880.3,1880.0,10.7384]
[1742124640976,10.8964,1880.2,1880.0,10.7384]
[1742124641465,10.8964,1880.2,1879.9,3.2078]
[1742124641672,3.2078,1880.1,1879.7,10.7384]
[1742124641876,3.2078,1879.9,1879.7,10.7384]
[1742124642175,15.2074,1880.0,1879.7,10.7384]
[1742124642375,10.8964,1879.9,1879.7,10.7384]
[1742124642772,14.1042,1879.9,1879.7,10.7384]
[1742124642970,10.8964,1879.9,1879.7,10.7384]
[1742124643278,4.311,1880.0,1879.7,10.7384]
[1742124644879,13.872,1879.9,1879.7,10.7384]
[1742124645269,13.872,1879.9,1879.6,3.2078]
[1742124645564,10.6642,1879.9,1879.6,14.5916]
[1742124645877,4.311,1880.0,1879.6,14.5916]
[1742124646077,4.311,1880.0,1879.7,11.1072]
[1742124650079,11.3333,1880.1,1879.7,11.1072]
[1742124650276,4.308,1880.0,1879.7,11.1072]
[1742124651484,18.8491,1880.2,1879.7,11.1072]
[1742124651889,1.06384,1880.0,1879.9,1.06383]
[1742124652284,2.65937,1880.1,1879.7,11.1072]
[1742124652490,1.06388,1879.9,1879.8,1.06387]
[1742124652891,1.06384,1880.0,1879.9,1.06384]
[1742124653088,3.2078,1880.2,1880.1,1.06375]
[1742124653388,1.06383,1880.0,1879.9,1.06382]
[1742124653592,2.65925,1880.2,1879.9,17.1027]
[1742124653593,11.6258,1880.2,1879.9,17.1027]
[1742124653887,1.06373,1880.2,1880.1,1.06375]
[1742124654193,1.06373,1880.2,1880.0,10.2085]
[1742124654194,0.00796769,1880.3,1880.2,1.06369]
[1742124654393,0.00796769,1880.3,1880.2,4.27149]
[1742124654581,3.7224,1880.5,1880.4,1.06358]
[1742124654993,3.7224,1880.5,1880.4,4.27138]
[1742124655289,1.06338,1880.8,1880.7,1.06341]
[1742124655494,1.06344,1880.7,1880.6,1.06343]
[1742124655789,15.25346769,1880.9,1880.6,0.00796769]
[1742124656091,3.2078,1881.6,1880.8,4.27115]
[1742124656395,1.06318,1881.1,1881.0,4.27099]
[1742124656591,2.1263,1881.2,1881.0,4.27099]
[1742124656592,2.1263,1881.2,1881.0,3.2078]
[1742124656887,3.18946,1881.2,1881.1,1.06318]
[1742124657090,2.1263,1881.2,1881.1,1.06318]
[1742124657796,2.1263,1881.2,1881.1,10.30488]
[1742124658789,2.1263,1881.2,1881.1,7.80488]
[1742124658995,3.18942,1881.2,1881.1,7.80488]
[1742124659196,2.1263,1881.2,1881.1,7.80488]
[1742124659393,3.18942,1881.2,1881.1,6.7417]
[1742124659796,14.14012,1881.2,1881.1,6.7417]
[1742124659989,12.01382,1881.2,1881.1,6.7417]
[1742124660194,12.01382,1881.2,1881.1,7.80488]
[1742124660393,1.06318,1881.1,1881.0,3.2078]
[1742124661196,11.92008,1881.1,1881.0,3.2078]
[1742124661692,1.06341,1880.7,1880.6,0.00796769]
[1742124662500,11.92031,1880.7,1880.6,0.00796769]
[1742124663092,1.0638,1880.0,1879.9,3.2078]
[1742124663297,1.06376,1880.1,1879.9,4.27162]
[1742124663498,1.06376,1880.1,1880.0,1.0638]
[1742124663894,1.06373,1880.2,1880.1,1.06375]
[1742124664401,1.06375,1880.1,1880.0,0.00796769]
[1742124664702,12.59545,1880.1,1880.0,0.00796769]
[1742124665096,16.89845,1880.1,1880.0,0.00796769]
[1742124666804,12.59545,1880.1,1880.0,0.00796769]
[1742124667106,16.89745,1880.1,1880.0,0.00796769]
[1742124667601,16.89745,1880.1,1880.0,1.07176769]
[1742124667805,4.302,1880.1,1880.0,1.07176769]
[1742124667999,11.01726769,1880.3,1880.0,0.00796769]
[1742124668203,0.00796769,1880.3,1880.0,0.00796769]
[1742124668506,1.06375,1880.1,1880.0,1.07175769]
[1742124668900,1.06375,1880.1,1880.0,0.00796769]
[1742124669905,12.70245,1880.1,1880.0,0.00796769]
[1742124671503,11.6387,1880.1,1880.0,1.07176769]
[1742124671705,12.70245,1880.1,1880.0,0.00796769]
[1742124672997,14.8465,1880.1,1879.5,3.2078]
[1742124673203,1.06403,1879.6,1879.5,3.2078]
[1742124674905,15.2764,1879.8,1879.6,1.06402]
[1742124675106,1.06397,1879.7,1879.6,11.5646]
[1742124675413,1.06409,1879.5,1879.4,6.99166769]
[1742124675607,1.06409,1879.5,1879.4,0.00796769]
[1742124677414,2.66045,1879.4,1879.0,10.91]
[1742124677605,1.06431,1879.1,1879.0,10.91]
[1742124677910,1.06428,1879.2,1879.1,1.06428]
[1742124678312,1.06424,1879.3,1879.2,1.06425]
[1742124678508,1.06426,1879.2,1879.1,1.06427]